Cogmind - Beta 15 @@@ ROGUE MODE // 2025.07.17 @ 10:47:04 Player: beans Result: Destroyed by 1Y-LFP(j) with Overtuned Pulse Rifle Performance ------------- Evolutions (0) 0 Regions Visited (4) 800 Robots Destroyed (16) 80 Value Destroyed (404) 404 Prototype IDs (17) 340 Alien Tech Used (0) 0 Bonus (800) 800 TOTAL SCORE: 2424 Bonus ------- Registered with UFD 300 Met Optimus in HQ 500 Cogmind --------- Core Integrity 0/250 Matter 136/300 Energy 307/310 System Corruption 0% Temperature Warm (151) Movement Core (250) Ox4 Location -9/Scraptown Parts ------- > --- POWER (1) -------- Fission Core > --- PROPULSION (2) --- Overtuned Titanium Leg > --- UTILITY (2) ------ Surveybot 17 Chip 0b10 Decoder Chip [Looter] > --- WEAPON (2) ------- Assault Cannon > --- INVENTORY (5) ---- Scrap Suit Peak State ------------ > --- POWER ------------ Fission Core > --- PROPULSION ------- Overtuned Titanium Leg Overtuned Titanium Leg > --- UTILITY ---------- Surveybot 17 Chip 0b10 Decoder Chip [Looter] > --- WEAPON ----------- Battle Cannon Mini Grenade Launcher > --- INVENTORY -------- Scrap Suit Assault Cannon [Rating: 28] Favorites ----------- Power Fission Core Engine Ion Engine Power Core Fission Core Propulsion Light Treads Treads Light Treads Leg Overtuned Titanium Leg Utility Surveybot 17 Chip Processor Surveybot 17 Chip Weapon Battle Cannon Ballistic Gun Assault Rifle Ballistic Cannon Battle Cannon Launcher Mini Grenade Launcher Build | -11 -10 -10 -10 -9 ------- Run | Yrd Mat Min Sub Scr Slots Evolved . | . . . . . Power . | . . . . . Propulsion . | . . . . . Utility . | . . . . . Weapon . | . . . . . Parts Attached 14 | 5 1 . 1 7 Power 2 | 1 . . . 1 Engine 1 | 1 . . . . Core 1 | . . . . 1 Reactor . | . . . . . Propulsion 4 | 2 . . . 2 Treads 2 | 2 . . . . Leg 2 | . . . . 2 Wheel . | . . . . . Hover . | . . . . . Flight . | . . . . . Utility 2 | . . . . 2 Device . | . . . . . Storage . | . . . . . Processor 2 | . . . . 2 Hackware . | . . . . . Protection . | . . . . . Artifact . | . . . . . Weapon 6 | 2 1 . 1 2 Energy Gun . | . . . . . Energy Cannon . | . . . . . Ballistic Gun 2 | 2 . . . . Ballistic Cannon 2 | . . . 1 1 Launcher 2 | . 1 . . 1 Special Weapon . | . . . . . Impact Weapon . | . . . . . Slashing Weapon . | . . . . . Piercing Weapon . | . . . . . Special Melee Weapon . | . . . . . Unidentified Prototypes . | . . . . . Parts Lost 7 | . 2 . 2 3 Power 1 | . . . 1 . Propulsion 1 | . . . . 1 Utility . | . . . . . Weapon 5 | . 2 . 1 2 Highest Loss Streak 3 | . 2 . 2 3 To Critical Strikes . | . . . . . Average Backups 1 | . . 1 . 1 Power . | . . . . . Propulsion . | . . . . . Utility . | . . . . . Weapon . | . . 1 . . Tool/Special . | . . . . . Unused Backups 1 | . . . . 1 Power . | . . . . . Propulsion . | . . . . . Utility 1 | . . . . 1 Weapon . | . . . . . Tool/Special . | . . . . . Average Slot Usage (%) 73 | . 68 42 44 81 Engine 3 | . 14 14 13 . Core 10 | . . . . 13 Treads 23 | . 28 28 28 22 Leg 3 | . . . . 5 Processor 8 | . . . . 11 Ballistic Gun 1 | . 15 . 1 . Ballistic Cannon 10 | . . . 1 13 Launcher 11 | . 9 . . 13 Peak Build Rating 28 | 5 5 3 6 28 Average Rating 13 | 3 4 3 3 17 On Entrance 3 | . 5 3 3 4 Naked Turns . | . . . . . Heaviest Build 15 | 9 10 5 10 15 Greatest Support 40 | 40 40 40 40 40 Greatest Overweight (x) 4 | 2 . . . 4 Average Overweight (x) . | . . . . . Largest Inventory Capacity 5 | 5 5 5 5 5 Average Capacity 5 | 5 5 5 5 5 Most Carried 5 | 2 1 1 2 5 Average Carried 1 | . . 1 . 1 Final Capacity 5 | 5 5 5 5 5 Final Carried 2 | . 1 1 1 2 Class Distribution -------------------- 100% | Mutant Dominant Class ---------------- Mutant | -10/Materials Mutant | -10/Mines Mutant | -10/Subcaves Mutant | -9/Scraptown Resources | -11 -10 -10 -10 -9 ----------- Run | Yrd Mat Min Sub Scr Matter Collected 417 | 85 . . 36 296 Remotely . | . . . . . Salvage Created 233 | . 123 . 21 89 Parts 19 | . 13 . . 6 Haulers Intercepted . | . . . . . Recyclers Shooed . | . . . . . Parts Field Recycled . | . . . . . Retrieved Matter . | . . . . . Parts Self-Destructed 11 | . . . 11 . Prevented . | . . . . . Kills | -11 -10 -10 -10 -9 ------- Run | Yrd Mat Min Sub Scr Combat Hostiles Destroyed 11 | . 6 . 1 4 Melee 1 | . . . 1 . Guns 1 | . 1 . . . Cannons 1 | . . . . 1 AOE 8 | . 5 . . 3 Classes Destroyed 8 | . 5 . 1 2 Worker 1 | . 1 . . . Builder 3 | . 3 . . . Tunneler 1 | . 1 . . . Swarmer 3 | . 3 . . . Grunt 3 | . 3 . . . Subdweller 1 | . . . 1 . Federalist 3 | . . . . 3 Explorer 1 | . . . . 1 Best Kill Streak 7 | . 7 . 1 3 Combat Bots Only 3 | . 3 . 1 3 Max Kills in Single Turn 2 | . 2 . 1 2 Gunslinging . | . . . . . Exploded 1 | . 1 . . 1 Melee 1 | . . . 1 . Uniques/NPCs Destroyed . | . . . . . Combat | -11 -10 -10 -10 -9 -------- Run | Yrd Mat Min Sub Scr Hostile Shots Fired 92 | . 23 . 28 41 Missed 20 | . 6 . 6 8 Hits 72 | . 17 . 22 33 Projectile 72 | . 17 . 22 33 Critical Strikes 3 | . . . 1 2 Damage Taken 1383 | . 397 . 450 536 Core 258 | . 95 . 85 78 Absorbed by Shields . | . . . . . Core Remaining (%) 100 | 100 . . . . Volleys Fired 24 | . 8 . 4 12 Largest 2 | . 2 . 2 2 Hottest 63 | . 50 . 53 63 Shots Fired 43 | . 15 . 8 20 Gun 12 | . 8 . 4 . Cannon 15 | . . . 4 11 Launcher 16 | . 7 . . 9 Special . | . . . . . Kinetic 27 | . 8 . 8 11 Thermal . | . . . . . Explosive 16 | . 7 . . 9 Electromagnetic . | . . . . . Robot Hit Streak 6 | . 4 . 6 . Robot Miss Streak 3 | . 1 . 1 3 Penetration Max . | . . . . . Secondary Targets . | . . . . . Shots Hit Robots 18 | . 11 . 7 . Core Hits 31 | . 12 . 3 16 Critical Kills . | . . . . . Critical Parts Destroyed . | . . . . . Critical Strikes 2 | . . . . 2 Blast 2 | . . . . 2 Melee Attacks . | . . . . . Impact . | . . . . . Slashing . | . . . . . Piercing . | . . . . . Sneak Attacks . | . . . . . Combat Hostiles . | . . . . . Follow-up Attacks . | . . . . . Damage Inflicted 1638 | . 990 . 121 527 Guns 119 | . 70 . 49 . Cannons 250 | . . . 67 183 Explosions 1264 | . 920 . . 344 Melee . | . . . . . Ramming 5 | . . . 5 . Kinetic 369 | . 70 . 116 183 Thermal 428 | . 428 . . . Explosive 836 | . 492 . . 344 Electromagnetic . | . . . . . Impact . | . . . . . Slashing . | . . . . . Piercing . | . . . . . Highest Corruption . | . . . . . Average Corruption . | . . . . . Corruption Purged . | . . . . . Corruption Blocked . | . . . . . Overload Shots . | . . . . . Overflow Damage 158 | . 158 . . . Projectiles . | . . . . . Explosions 158 | . 158 . . . Melee . | . . . . . Knockbacks . | . . . . . Impact . | . . . . . Kinetic . | . . . . . Secondary . | . . . . . Self-Inflicted Damage 198 | . 198 . . . Shots 5 | . 5 . . . Rammed 2 | . . . 2 . Targets Rammed 2 | . . . 2 . Kicked . | . . . . . Crushed . | . . . . . Highest Temperature 164 | . 6 . . 164 Average Temperature 63 | . 3 . . 72 Received Heat Transfer 464 | . 96 . 42 326 Siege Activations . | . . . . . Martial Activations . | . . . . . Shielding Activations . | . . . . . Robots Disrupted . | . . . . . Combat Hostiles . | . . . . . Robots Corrupted . | . . . . . Combat Hostiles . | . . . . . Parts Fried . | . . . . . Impact Corruptions . | . . . . . Robots Melted . | . . . . . Combat Hostiles . | . . . . . Parts Melted . | . . . . . Heat Transferred 350 | . 350 . . . Parts Sabotaged . | . . . . . Parts Stolen . | . . . . . Parts Stripped . | . . . . . Power Chain Reactions . | . . . . . Alert | -11 -10 -10 -10 -9 ------- Run | Yrd Mat Min Sub Scr Maximum Alert Level 1 | . 1 . . . Low Security (%) 95 | 100 91 100 . . Level 1 4 | . 8 . . . Level 2 . | . . . . . Level 3 . | . . . . . Level 4 . | . . . . . Level 5 . | . . . . . High Security . | . . . . . Max Security . | . . . . . Peak Influence 241 | . 241 85 . . Initial 85 | . . 85 . . Average 44 | . 50 47 . . Influence Increases 297 | . 297 . . . Destroy 0b10 Robot/C 120 | . 120 . . . Destroy 0b10 Robot/NC 25 | . 25 . . . Destroy Leader 30 | . 30 . . . Successful Hack 9 | . 9 . . . Disable Machine 90 | . 90 . . . Destroy Structure 23 | . 23 . . . Influence Decreases 297 | . 76 216 5 . Entered New Map 139 | . . 136 3 . Time Decay 138 | . 56 80 2 . Lost Part 20 | . 20 . . . Squads Dispatched 3 | . 3 . . . Investigation 2 | . 2 . . . Extermination . | . . . . . Reinforcement 1 | . 1 . . . Assault . | . . . . . Garrison . | . . . . . Intercept . | . . . . . Searches Triggered . | . . . . . Construction Impeded . | . . . . . Haulers Reinforced . | . . . . . Active Scanning Responses . | . . . . . Cargo Convoy Interrupts . | . . . . . Stealth | -11 -10 -10 -10 -9 --------- Run | Yrd Mat Min Sub Scr Distress Signals 1 | . 1 . . . Communications Jammed . | . . . . . Distress Signals . | . . . . . Times Spotted 24 | . 11 . 2 11 Peak Tracking Total 5 | . 5 . 2 5 Tactical Retreats . | . . . . . Traps | -11 -10 -10 -10 -9 ------- Run | Yrd Mat Min Sub Scr Traps Triggered 2 | . 2 . . . Indirectly . | . . . . . Trap Hack Attempts . | . . . . . Triggered . | . . . . . Disarmed . | . . . . . Reprogrammed . | . . . . . Reused . | . . . . . Traps Extracted . | . . . . . Installed . | . . . . . Triggered . | . . . . . Machines | -11 -10 -10 -10 -9 ---------- Run | Yrd Mat Min Sub Scr Machines Disabled 9 | . 6 . . 3 Max in Single Turn 3 | . 3 . . 2 Machines Repaired . | . . . . . Machines Dismantled . | . . . . . Machines Sabotaged . | . . . . . Overloaded Fab Kills . | . . . . . Hacking | -11 -10 -10 -10 -9 --------- Run | Yrd Mat Min Sub Scr Machines Accessed 9 | . 2 . 1 6 Terminals 2 | . 2 . . . Fabricators . | . . . . . Repair Stations . | . . . . . Recycling Units . | . . . . . Scanalyzers . | . . . . . Garrison Access . | . . . . . Total Hacks 40 | . 7 . 1 32 Successful 38 | . 5 . 1 32 Failed 2 | . 2 . . . Catastrophic . | . . . . . Database Lockouts . | . . . . . Manual . | . . . . . Terminals 7 | . 7 . . . Fabricators . | . . . . . Repair Stations . | . . . . . Recycling Units . | . . . . . Scanalyzers . | . . . . . Garrison Access . | . . . . . Terminal Hacks 38 | . 5 . 1 32 Record 36 | . 4 . . 32 Branch Access Points 1 | . 1 . . . Proto ID Catalog 1 | . . . 1 . Fabricator Hacks . | . . . . . Repair Station Hacks . | . . . . . Recycling Unit Hacks . | . . . . . Scanalyzer . | . . . . . Garrison Access Hacks . | . . . . . Unauthorized Hacks . | . . . . . Terminals . | . . . . . Fabricators . | . . . . . Repair Stations . | . . . . . Recycling Units . | . . . . . Scanalyzers . | . . . . . Garrison Access . | . . . . . Data Cores Recovered . | . . . . . Used . | . . . . . Hacking Detections 1 | . 1 . . . Full Trace Events . | . . . . . Feedback Events . | . . . . . Feedback Blocked . | . . . . . Robot Schematics Acquired . | . . . . . Robots Built . | . . . . . Authchips . | . . . . . Time . | . . . . . Total Robot Build Rating . | . . . . . Part Schematics Acquired . | . . . . . Parts Built . | . . . . . Authchips . | . . . . . Time . | . . . . . Total Part Build Rating . | . . . . . Parts Repaired . | . . . . . Time . | . . . . . Parts Recycled . | . . . . . Recycled Matter . | . . . . . Retrieved Matter . | . . . . . Retrieved Components . | . . . . . Parts Scanalyzed . | . . . . . Part Schematics Acquired . | . . . . . Parts Damaged . | . . . . . Bothacking | -11 -10 -10 -10 -9 ------------ Run | Yrd Mat Min Sub Scr Used RIF Installer . | . . . . . Robots Hacked . | . . . . . Non-combat . | . . . . . Combat . | . . . . . Robot Hacks Applied . | . . . . . Relay Couplers Released . | . . . . . Fabnet Peak Effective % . | . . . . . Robots Rewired . | . . . . . Allies Hacked . | . . . . . Hacks Repelled . | . . . . . Allies | -11 -10 -10 -10 -9 -------- Run | Yrd Mat Min Sub Scr Total Allies . | . . . . . Largest Group . | . . . . . Highest-Rated Group . | . . . . . Highest-Rated Ally . | . . . . . Total Orders . | . . . . . Ally Attacks . | . . . . . Total Damage . | . . . . . Kills . | . . . . . Allies Corrupted . | . . . . . Allies Melted 1 | . . . . 1 Intel | -11 -10 -10 -10 -9 ------- Run | Yrd Mat Min Sub Scr Active Infowar (turns) 361 | . . . . 361 Decoding 361 | . . . . 361 Robot Analysis Total . | . . . . . Derelict Logs Recovered 2 | . . . 2 . Drone Launches . | . . . . . Drone Recoveries . | . . . . . Exploration | -11 -10 -10 -10 -9 ------------- Run | Yrd Mat Min Sub Scr Turns Passed 3772 | 49 252 167 501 2803 Spaces Moved 2151 | 32 142 81 297 1599 Core 41 | 18 . . . 23 Treads 1774 | 14 142 81 297 1240 Legs 336 | . . . . 336 Wheels . | . . . . . Hover . | . . . . . Flight . | . . . . . Fastest Speed 50 | 50 160 160 160 100 Average Speed 151 | 124 160 160 160 148 Slowest Speed 250 | 160 160 160 160 250 Overloaded Moves . | . . . . . Propulsion Burnouts . | . . . . . Robots Hopped . | . . . . . Potential Cave-ins . | . . . . . Cave-ins Triggered . | . . . . . Exploration Rate (%) 32 | 3 48 27 24 61 Regions Visited 4 Branch Regions 3 Pre-discovered Areas 1 | . . . 1 . Known Exits Taken 1 | . 1 . . . Unknown Exits Taken 3 | 1 . 1 1 . Scrap Searched 1 | . . . . 1 Spaces Dug . | . . . . . Terrain Destroyed 68 | . 28 . . 40 Melee . | . . . . . Projectile . | . . . . . AOE 68 | . 28 . . 40 Terrain Rammed . | . . . . . Walls Destroyed . | . . . . . Machines Disabled . | . . . . . Actions | -11 -10 -10 -10 -9 --------- Run | Yrd Mat Min Sub Scr Total 2634 | 41 151 119 314 2009 Wait 427 | . . 39 8 380 Move 2147 | 31 141 80 296 1599 Hop . | . . . . . Pick Up 16 | 5 1 . 2 8 Fast Attach . | . . . . . Attach 14 | 5 . . 2 7 Detach . | . . . . . Swap 1 | . 1 . . . Drop 3 | . . . . 3 Fire 24 | . 8 . 4 12 Melee . | . . . . . Ram . | . . . . . Kick . | . . . . . Crush 2 | . . . 2 . Escape Stasis . | . . . . . Rewire . | . . . . . Trap . | . . . . . Miscellaneous . | . . . . . Route ------- -11/Scrapyard -10/Materials (discovered 3 exits: [*Mat] / *Min x2) -10/Mines -10/Subcaves (discovered 2 exits: [*Mat] / *Scr) -9/Scraptown (discovered 1 exit: [*Fac]) History --------- Turn | Location | Event 3 | -11/Scrapyard | Discovered new exit (range 15) 50 | -11/Scrapyard | Entered Materials 119 | -10/Materials | Identified exit to Mines 233 | -10/Materials | Discovered new exit (range 16) 302 | -10/Materials | Entered Mines 307 | -10/Mines | Build established: Mutant 460 | -10/Mines | Discovered new exit (range 6) 469 | -10/Mines | Entered Subcaves 470 | -10/Subcaves | Approached by a straggling Scientist 474 | -10/Subcaves | Learned location of Zion (-6) 474 | -10/Subcaves | Met a Zionite searching for "candidates" 647 | -10/Subcaves | Discovered new exit (range 9) 820 | -10/Subcaves | Learned location of 1 exit from Materials 840 | -10/Subcaves | Visited 4L-MR0's lab 930 | -10/Subcaves | Scientist uncovered a shortcut to Scraptown 940 | -10/Subcaves | Core integrity fell below 50% 970 | -10/Subcaves | Entered Scraptown 1205 | -9/Scraptown | Visited Fellowship of the Rings 1254 | -9/Scraptown | Visited Assassins FH 1305 | -9/Scraptown | Visited Red Mages 1353 | -9/Scraptown | Visited Comm Corps 1417 | -9/Scraptown | Visited Awakened 1490 | -9/Scraptown | Visited Cave Peace 1517 | -9/Scraptown | Visited UFD Registry 1517 | -9/Scraptown | Registered with UFD as "Hellmech" 1538 | -9/Scraptown | Visited Cyclists 1565 | -9/Scraptown | Entered Cyclist Reading Room 1858 | -9/Scraptown | Visited Cartography Club 1907 | -9/Scraptown | Found Surveybot 17 Chip 2736 | -9/Scraptown | Visited LU-1G1's Boring Crew 3003 | -9/Scraptown | Visited Derelict Rescue Squad 3078 | -9/Scraptown | Found Scrap Suit 3148 | -9/Scraptown | Discovered new exit (range 5) 3202 | -9/Scraptown | Visited Modified Component R&D 3284 | -9/Scraptown | Visited Observation Area 3330 | -9/Scraptown | Visited Infowarlord's Domain 3516 | -9/Scraptown | Met Optimus 3516 | -9/Scraptown | Accepted into 0bPrime 3570 | -9/Scraptown | Visited Scrap Suit Storage 3649 | -9/Scraptown | Civil war broke out across Scraptown 3745 | -9/Scraptown | Core integrity fell below 20% 3773 | -9/Scraptown | Destroyed by 1Y-LFP(j) with Overtuned Pulse Rifle Last Messages --------------- KE-5BN(E) destroyed. Ovr. Titanium Leg recovered from malfunction. DW-Y2M(g) destroyed. F1-ABY(j) heat damages Ovr. Pulse Rifle. Critical hit (Burn: +50). The unstable cave ceiling collapses. Ovr. Titanium Leg suddenly begins malfunctioning. Acquired 90 matter. HL-IZF(g) destroyed. The unstable cave ceiling collapses. Bolt penetrates Wall. Battle Cannon destroyed. Bolt penetrates Wall. Critical hit (Burn: +50). Penetrated by Bolt. Ovr. Titanium Leg destroyed. Mni. Grenade Launcher destroyed. Acquired 60 matter. Penetrated by Bolt. Map ----- +----------------------------------------------------+ | ?????????????????????## ###########?????????????? | | ???????????##########?# #"""""""""??????????????? | | #########??#""""""""#?# #"""""""#???????????????? | | # # #??#" " && "#?# #" " [[#???????????????? | | # # """ #??#" "#?# #"= #+####??????????? | | # # "|" #??#"" ""#?# #" """#??????????? | | # # """ # ##" "#?# #"= "#??????????? | | # ##"" ""#?#!!#""""" ""#??????????? | | # ####### ##" "###=%#####" "#??????????? | | # # #??#"" ""## !* """"" X#??????????? | | # # #??# # ##??????????? | | # # # ## # j% ! "#??????????? | | # ## # [j =jh == "#??????????? | | ##### ########### ### ##########??????????? | | ##### ########### ## = #############??????? | | """"" """"""""""" x = ## """""""""#??????? | | E %%*[ [ = # "#??????? | | =%[ # """""" "#??????? | | !!! ## "????" "#??????? | | == ## "????" "#??????? | | "????" "#??????? | | """""""""""""""""""" "" [!! ## """""" "#??????? | | """""""""""""""""""""" ! = ## " "#??????? | | ### ################"" ** "## """"""""""#??????? | | ##????????#"" ! "##############??????? | | X"#????????#"" @ "#???????????????????? | | "" "" ##????????#"" "###########?????????? | | "" "" X"##?????###"" "## #?????????? | | " "=% ## #"" ## #?????????? | | "" =!!=! j #?????????? | | "" !=%*= "## #?????????? | | " " #%* ### #"" "## #?????????? | | "" "" ""# ?????###"" ###########?????????? | | "" "" ##????????#"" #???????????????????? | | X"#????????#"" #???????????????????? | | ##????????#" "##########?##???????? | | ### ######?????##### "## #"""""#""#???????? | | ??""""?????????"""""" ## !!!!! !#???????? | | ?""""""????"""""""""" ! =x*%! #???????? | | ??? =%[ %%"## #???????? | | ??? [% ! != ## X" #???????? | | ??? ## ##"#???????? | | ???? ## !!!!#??????????? | | ?????? %! # #"""""#??????????? | | """"???????" """" "" ##########??????????? | | ###??????????###### "#"### #???????????????????? | | ???????????????? ??# #???????????????????? | | ?????????????? ??# #???????????????????? | | ?????????????? " "" ??# #???????????????????? | | ????????????????"###" ???# #???????????????????? | +----------------------------------------------------+ Best States ------------- Heat Dissipation 25 Energy Generation 18 Energy Capacity 310 Matter Stores 135 Matter Capacity 300 Sight Range 16 Terrain Scan Density 1210 Evasion (%) 55 Recoil Reduction 2 Item Schematics ----------------- None Robot Schematics ------------------ None Fabricated ------------ Nothing Repaired ---------- Nothing Alien Tech Used ----------------- None Achievements -------------- None Challenges ------------ None Game ------ Seed FissionMassDriver Manual? 0 Play Time 00:23:00 Cumulative 57.4 hours Start 2025.07.17 @ 10:24:21 End 2025.07.17 @ 10:47:04 Sessions 1 Manual Loads 0 Difficulty Rogue Special Mode None Game No. 249 Rogue 249 Adventurer 0 Explorer 0 Win Type - Total 0 Types 0/0/0/0/0/0/0/0/0/0 Lore% 38 Gallery% 29 Achievement% 24 Wizard Run 0 Options --------- Layout 2 ASCII 0 Keyboard 0 Movement Mouse Keybinds 0 Fullscreen 1 Font 24/Terminus Map View 50x44 Zoom Use 0% Tactical HUD 0 Map Filters NONE Filters NONE Steam 1 RUN: d24c938c-ebca-419d-91c1-3028a441d6dd